bitfinex/quotes_ETHUSD_20250114
["timestamp","ask_amount","ask_price","bid_price","bid_amount"]
[1736826906874,0.03153325,3165.1,3164.8,0.0075]
[1736826910130,0.03153325,3165.1,3164.5,0.7635]
[1736826910131,0.03153325,3165.1,3164.6,0.0075]
[1736826910251,0.8192,3165.6,3164.6,0.0390974]
[1736826910450,3.15916,3165.4,3164.7,0.22383203]
[1736826910671,3.15874,3165.9,3164.9,0.0075]
[1736826910874,3.15874,3165.9,3165.0,0.80259326]
[1736826910875,3.79115806,3165.9,3165.0,0.80259326]
[1736826911076,3.79115806,3165.9,3165.1,0.39772433]
[1736826911383,0.03153325,3165.8,3165.2,0.0075]
[1736826911543,3.19038325,3165.8,3165.4,0.0075]
[1736826911747,3.19038325,3165.8,3165.6,0.0075]
[1736826913084,3.19038325,3165.8,3165.0,0.7214]
[1736826913464,3.19038325,3165.8,3165.1,0.22233808]
[1736826914378,3.57266338,3165.8,3165.1,0.22233808]
[1736826915059,3.57266338,3165.8,3165.2,0.0075]
[1736826915470,3.57266338,3165.8,3165.4,0.0075]
[1736826915650,3.15887,3165.7,3165.4,0.0075]
[1736826915853,0.03153325,3165.6,3165.4,0.0075]
[1736826916589,0.38880159,3165.6,3165.1,0.0075]
[1736826916789,3.19049325,3165.6,3165.3,0.0075]
[1736826917357,0.03153325,3165.6,3165.1,0.0075]
[1736826917680,0.03153325,3165.7,3165.3,0.0075]
[1736826918071,0.03153325,3165.7,3165.5,0.0075]
[1736826918990,3.93115,3165.5,3165.0,0.7214]
[1736826919291,0.772,3165.0,3164.5,0.7642]
[1736826919497,3.15957,3165.0,3164.6,0.0075]
[1736826919793,0.03153325,3164.9,3164.6,0.0075]
[1736826920358,3.15916,3165.4,3164.6,0.03909816]
[1736826920557,0.03153325,3165.3,3164.7,0.7642]
[1736826920790,0.03153325,3165.3,3164.7,1.1445295]
[1736826921963,3.15916,3165.4,3164.7,1.1445295]
[1736826922364,3.15899,3165.6,3164.7,1.17612445]
[1736826922867,0.03153325,3165.5,3164.8,0.0225]
[1736826923068,0.03153325,3165.5,3164.8,0.45835745]
[1736826923685,0.03153325,3165.5,3164.9,0.97928824]
[1736826923866,0.03153325,3165.6,3164.9,0.97928824]
[1736826925142,0.63241806,3165.9,3164.9,0.97928824]
[1736826925143,3.79110806,3165.9,3165.0,0.05409286]
[1736826925305,0.03153325,3165.8,3165.1,0.7642]
[1736826925468,0.03153325,3165.8,3165.1,0.97923808]
[1736826925864,3.19032325,3165.8,3165.1,0.97923808]
[1736826926088,0.50510738,3165.8,3165.1,0.97923808]
[1736826926298,3.15886,3165.7,3165.1,0.97923808]
[1736826926604,0.03153325,3165.6,3165.1,0.97923808]
[1736826931593,0.03153325,3165.8,3165.1,0.97923808]
[1736826933310,3.15855,3166.1,3165.4,0.0075]
[1736826934090,0.8173,3166.3,3165.4,0.0075]
[1736826934405,3.15857,3166.0,3165.6,0.0075]
[1736826934602,3.15857,3166.0,3165.7,0.21482152]
[1736826937436,3.80100445,3166.1,3165.7,0.21482152]
[1736826937730,0.64247445,3166.1,3165.7,0.21482152]
[1736826937925,3.15857,3166.0,3165.4,0.0075]
[1736826938127,3.15857,3166.0,3165.6,0.0075]
[1736826938328,3.15857,3166.0,3165.7,0.2144615]
[1736826938637,3.15857,3166.0,3165.6,0.0075]
[1736826938926,3.15857,3166.0,3165.7,0.2144615]
[1736826939147,0.03153325,3165.9,3165.4,0.0075]
[1736826939296,3.15875,3165.8,3165.6,0.0075]
[1736826939497,3.15895,3165.6,3165.5,0.21448959]
[1736826939802,3.15918,3165.4,3164.4,0.7706]
[1736826940117,3.15943,3165.2,3164.5,0.22213748]
[1736826940318,3.15957,3165.0,3164.5,0.22213748]
[1736826940518,0.03153325,3164.9,3164.5,0.22213748]
[1736826940899,3.15977,3164.8,3164.1,0.7706]
[1736826941120,0.03153325,3164.7,3164.1,0.7706]
[1736826941397,0.03153325,3164.7,3164.2,0.22217966]
[1736826943200,3.15957,3165.0,3164.3,0.7706]
[1736826943510,3.15957,3165.0,3164.4,0.0075]
[1736826943829,4.74982716,3165.3,3164.6,0.0075]
[1736826944034,5.54071988,3165.3,3164.6,0.0075]
[1736826944336,5.54071988,3165.3,3164.8,0.0075]
[1736826945836,5.54071988,3165.3,3164.4,0.0075]
[1736826946206,0.03153325,3165.2,3164.6,0.0075]
[1736826946735,5.54071988,3165.3,3164.8,0.0075]
[1736826947677,2.38136988,3165.3,3164.4,0.0075]
[1736826947848,3.19089325,3165.2,3164.4,0.0075]
[1736826948136,3.15936,3165.2,3164.6,0.0075]
[1736826948717,3.15936,3165.2,3164.8,0.0075]
[1736826949125,3.15936,3165.2,3164.9,0.21498542]
[1736826949416,0.03153325,3165.3,3164.7,0.0075]
[1736826949622,0.03153325,3165.3,3165.0,0.21497136]
[1736826949821,0.03153325,3165.3,3164.6,0.0075]
[1736826950018,3.823,3165.6,3165.1,1.02455731]
[1736826950019,3.98196,3165.6,3165.1,1.02455731]
[1736826950222,0.03153325,3165.7,3165.2,0.0075]
[1736826950424,0.03153325,3165.7,3165.2,0.22244326]
[1736826951549,3.0,3166.0,3165.2,0.25403411]
[1736826951854,0.141,3166.3,3165.2,0.25403411]
[1736826952152,3.15858,3166.0,3165.2,0.25403411]
[1736826952348,3.15858,3166.0,3165.2,0.22244326]
[1736826952938,0.03153325,3165.9,3165.2,0.22244326]
[1736826953451,0.65185559,3165.9,3165.2,0.22244326]
[1736826954539,3.15877,3165.8,3165.2,0.22244326]
[1736826954743,0.03153325,3165.7,3165.2,0.22244326]
[1736826961723,0.62032234,3165.9,3165.2,0.22244326]
[1736826961930,3.94363,3166.3,3165.4,0.0075]
[1736826962143,0.394363,3166.2,3165.6,0.0075]
[1736826962346,3.15865,3166.0,3165.7,0.21459374]
[1736826962726,3.15865,3166.0,3165.6,0.0075]
[1736826963136,3.15865,3166.0,3165.7,0.21459374]
[1736826963428,3.15867,3165.9,3165.6,0.0075]
[1736826963639,3.15867,3165.9,3165.8,0.2145797]
[1736826963867,3.15867,3165.9,3165.6,0.0075]
[1736826964224,3.15867,3165.9,3165.7,0.21459374]
[1736826964426,3.15867,3165.9,3165.6,0.0075]
[1736826964670,3.15867,3165.9,3165.8,0.2145797]
[1736826964855,3.15867,3165.9,3165.7,0.21459374]
[1736826965052,3.15867,3165.9,3165.6,0.0075]
[1736826965385,3.15867,3165.9,3165.7,0.21454968]
[1736826965578,3.15867,3165.9,3165.6,0.0075]
[1736826965878,3.15867,3165.9,3165.8,0.21453563]
[1736826966166,3.15867,3165.9,3165.6,0.0075]
[1736826966359,3.15867,3165.9,3165.8,0.21453563]
[1736826966567,3.15867,3165.9,3165.6,0.0075]
[1736826966771,3.15867,3165.9,3165.8,0.21453563]
[1736826966973,3.15867,3165.9,3165.6,0.0075]
[1736826967352,3.15867,3165.9,3165.7,0.21454968]
[1736826967550,3.15867,3165.9,3165.6,0.0075]
[1736826967738,3.15867,3165.9,3165.7,0.21454968]
[1736826967939,3.15867,3165.9,3165.6,0.0075]
[1736826968150,3.15867,3165.9,3165.7,0.21454968]
[1736826968337,3.15867,3165.9,3165.6,0.0075]
[1736826968539,3.19033325,3165.8,3165.7,0.21454968]
[1736826968747,3.19033325,3165.8,3165.6,0.0075]
[1736826969538,3.1588,3165.8,3165.6,0.0075]
[1736826970940,3.1588,3165.8,3165.7,0.21454968]
[1736826971162,3.1588,3165.8,3165.6,0.0075]
[1736826971360,3.1588,3165.8,3165.7,0.21454968]
[1736826971677,3.1588,3165.8,3165.6,0.0075]
[1736826972065,0.623566,3166.1,3165.7,0.21454968]
[1736826972578,3.15867,3165.9,3165.6,0.0075]
[1736826972765,3.15867,3165.9,3165.8,0.21453563]
[1736826972954,3.15867,3165.9,3165.6,0.0075]
[1736826973153,3.15867,3165.9,3165.7,0.21454968]
[1736826973353,3.15867,3165.9,3165.6,0.0075]
[1736826973563,3.15867,3165.9,3165.7,0.21454968]
[1736826973775,3.15867,3165.9,3165.6,0.0075]
[1736826973985,3.15867,3165.9,3165.8,0.21453563]
[1736826974143,3.15867,3165.9,3165.6,0.0075]
[1736826974339,3.15867,3165.9,3165.7,0.21454968]
[1736826974570,3.15867,3165.9,3165.6,0.0075]
[1736826974841,3.15867,3165.9,3165.8,0.21453563]
[1736826975037,3.15867,3165.9,3165.6,0.0075]
[1736826975244,3.15867,3165.9,3165.8,0.21455766]
[1736826975653,3.15867,3165.9,3165.6,0.0075]
[1736826975877,3.15867,3165.9,3165.8,0.21455766]
[1736826976056,3.15867,3165.9,3165.7,0.21457171]
[1736826976263,3.15915,3165.4,3164.4,0.8095]
[1736826976443,0.8165,3165.7,3164.4,0.8095]
[1736826976650,3.19048325,3165.6,3164.7,0.0075]
[1736826976847,3.15915,3165.5,3164.9,0.0075]
[1736826977070,3.19071325,3165.4,3164.9,0.0075]
[1736826977342,3.19071325,3165.4,3165.1,0.0075]
[1736826977782,3.19071325,3165.4,3165.2,0.20026963]
[1736826977984,3.19071325,3165.4,3165.1,0.0075]
[1736826978148,3.19071325,3165.4,3164.9,0.0075]
[1736826978764,3.19071325,3165.4,3165.1,0.0075]
[1736826978953,0.03153325,3165.4,3165.2,0.20026963]
[1736826979160,3.15886,3165.7,3165.3,0.783]
[1736826979372,3.15886,3165.7,3165.5,0.0075]
[1736826979680,0.03153325,3165.6,3165.5,0.0075]
[1736826979994,0.03153325,3165.6,3165.5,0.20789596]
[1736826980191,3.15886,3165.7,3165.5,0.20789596]
[1736826981248,0.03153325,3165.6,3165.5,0.20789596]
[1736826981476,0.03153325,3165.6,3165.5,0.20039596]
[1736826981477,3.50952257,3165.6,3165.5,0.20039596]
[1736826981679,4.28732257,3165.6,3165.5,0.20039596]
[1736826981853,3.1597,3164.9,3164.5,0.0075]
[1736826982068,3.19130325,3164.8,3164.5,0.0075]
[1736826983492,3.15977,3164.8,3164.5,0.0075]
[1736826983793,3.15977,3164.8,3164.6,0.19361953]
[1736826983958,3.15977,3164.8,3164.5,0.0075]
[1736826984159,0.7778,3165.0,3164.6,0.19361953]
[1736826984361,0.7778,3165.9,3164.7,0.783]
[1736826984568,3.15939,3165.2,3164.7,0.783]
[1736826984771,0.03153325,3165.1,3164.8,0.19359141]
[1736826984972,0.03153325,3165.1,3164.7,0.783]
[1736826985295,0.03153325,3165.1,3164.9,0.19390606]
[1736826985598,0.03153325,3165.1,3164.7,0.783]
[1736826985895,0.03153325,3165.1,3165.0,0.19389201]
[1736826986095,0.03153325,3165.1,3164.7,0.783]
[1736826986495,0.03153325,3165.1,3164.8,0.19392012]
[1736826987011,0.03153325,3165.1,3164.9,0.19390606]
[1736826987231,0.03153325,3165.1,3164.6,0.0075]
[1736826987504,0.7778,3165.3,3164.6,0.0075]
[1736826987505,3.15964,3165.0,3164.6,0.0075]
[1736826987660,3.19123325,3164.9,3164.6,0.0075]
[1736826988661,3.19123325,3164.9,3164.4,0.0075]
[1736826996240,3.1597,3164.9,3164.4,0.0075]
[1736826996571,0.03153325,3164.8,3164.4,0.0075]
[1736826997721,3.15947,3165.1,3164.3,0.7948]
[1736826997944,3.15947,3165.1,3164.5,0.0075]
[1736826998096,3.553197,3165.1,3164.5,0.0075]
[1736826998744,3.553197,3165.1,3164.7,0.0075]
[1736826998926,0.03153325,3165.2,3164.9,0.0075]
[1736826999095,3.15923,3165.4,3164.9,0.0075]
[1736826999441,3.15869,3165.9,3165.0,0.98178374]
[1736826999728,3.15887,3165.7,3165.0,0.98178374]
[1736827000031,3.19051325,3165.6,3165.0,0.98178374]
[1736827000346,3.15945,3165.1,3165.0,0.19448374]
[1736827000663,3.15945,3165.1,3164.8,0.7873]
[1736827001331,0.03153325,3165.0,3164.7,0.0075]
[1736827001734,0.03153325,3165.0,3164.8,0.19435843]
[1736827002115,0.03153325,3165.0,3164.7,0.0075]
[1736827002314,0.03153325,3165.0,3164.9,0.19434438]
[1736827002516,0.03153325,3165.0,3164.8,0.19435843]
[1736827002738,0.03153325,3165.0,3164.7,0.0075]
[1736827002739,0.03153325,3165.0,3164.9,0.19434438]
[1736827003019,0.03153325,3165.0,3164.7,0.0075]
[1736827003343,0.03153325,3165.0,3164.9,0.19434438]
[1736827003545,3.15927,3165.3,3164.9,0.0075]
[1736827003749,3.554307,3165.3,3164.9,0.20184438]
[1736827004073,3.554307,3165.3,3165.0,0.1944545]
[1736827004235,3.554307,3165.3,3164.7,0.0075]
[1736827004439,3.554307,3165.3,3165.1,0.19444045]
[1736827004611,3.554307,3165.3,3164.7,0.0075]
[1736827004815,3.554307,3165.3,3165.2,0.1944264]
[1736827005023,3.554307,3165.3,3164.7,0.0075]
[1736827005253,3.554307,3165.3,3165.2,0.1944264]
[1736827005549,0.141,3165.6,3164.7,0.0075]
[1736827005720,3.15909,3165.5,3164.9,0.0075]
[1736827006216,3.15918,3165.4,3165.0,0.19442528]
[1736827008145,0.03153325,3165.3,3165.1,0.0075]
[1736827008468,3.98190325,3165.3,3165.2,0.19436064]
[1736827008682,1.22082357,3165.3,3164.9,0.0075]
[1736827008883,3.15936,3165.2,3164.9,0.0075]
[1736827009389,3.19089325,3165.2,3164.9,0.0075]
[1736827013473,3.19089325,3165.2,3165.0,0.19422803]
[1736827014138,0.03153325,3165.2,3165.0,0.19422803]
[1736827014341,0.03153325,3165.2,3165.0,0.51102803]
[1736827014573,0.03153325,3165.2,3165.0,0.19422803]
[1736827015767,3.15919,3165.4,3165.0,0.19422803]
[1736827015963,3.15919,3165.4,3165.1,0.0075]
[1736827016167,0.6198105,3165.7,3165.3,0.0075]
[1736827016665,0.03153325,3165.6,3165.4,0.19404031]
[1736827018461,3.19049325,3165.6,3165.3,0.0075]
[1736827019802,3.19049325,3165.6,3165.4,0.19404031]
[1736827020165,3.19049325,3165.6,3165.3,0.0075]
[1736827020597,3.19049325,3165.6,3165.4,0.19404031]
[1736827020998,3.19049325,3165.6,3165.3,0.0075]
[1736827021203,3.19049325,3165.6,3165.4,0.19404031]
[1736827021562,3.19049325,3165.6,3165.3,0.0075]
[1736827021770,0.03153325,3165.6,3165.3,0.0075]
[1736827022065,0.03153325,3165.6,3165.4,0.19404031]
[1736827022267,0.03153325,3165.6,3165.3,0.0075]
[1736827022498,0.03153325,3165.6,3165.5,0.19402626]
[1736827022716,0.03153325,3165.6,3165.3,0.0075]
[1736827022969,0.6198105,3165.7,3165.5,0.19402626]
[1736827023102,0.03153325,3165.6,3165.4,0.19404031]
[1736827023298,0.03153325,3165.6,3165.3,0.0075]
[1736827023531,0.03153325,3165.6,3165.5,0.19382904]
[1736827023752,0.03153325,3165.6,3165.4,0.19384309]
[1736827024055,0.03153325,3165.6,3165.5,0.19382904]
[1736827024249,0.03153325,3165.6,3165.3,0.0075]
[1736827024547,0.03153325,3165.6,3165.5,0.19382904]
[1736827024736,0.03153325,3165.6,3165.4,0.19384309]
[1736827024939,0.03153325,3165.6,3165.3,0.0075]
[1736827025136,0.03153325,3165.6,3164.8,0.8172]
[1736827025445,0.03153325,3165.6,3165.4,0.19384309]
[1736827025651,0.03153325,3165.6,3164.8,0.8172]
[1736827026006,0.03153325,3165.6,3165.5,0.19382904]
[1736827026207,0.03153325,3165.6,3164.8,0.8172]
[1736827026674,3.7786905,3165.7,3164.9,0.19391335]
[1736827026970,0.03153325,3165.6,3164.9,0.19391335]
[1736827027126,0.03153325,3165.6,3164.9,0.91100968]
[1736827030273,3.94978,3165.9,3164.9,0.91100968]
[1736827030493,3.94978,3165.9,3165.1,0.0075]
[1736827030697,3.15868,3165.9,3165.3,0.0075]
[1736827031047,0.64427923,3165.8,3165.3,0.0075]
[1736827031248,0.64427923,3165.8,3165.4,0.19363126]
[1736827033791,0.2,3166.0,3165.5,0.0075]
[1736827033987,0.2,3166.0,3165.6,0.7519]
[1736827034190,0.2,3166.0,3165.6,0.94550316]
[1736827034692,0.66796391,3165.9,3165.6,0.19360316]
[1736827035254,3.82662391,3165.9,3165.6,0.19360316]
[1736827038454,3.15885,3165.7,3165.6,0.19360316]
[1736827038655,3.19038325,3165.7,3165.0,0.0075]
[1736827038879,3.19038325,3165.7,3165.6,0.19337674]
[1736827039186,3.65574464,3165.7,3165.0,0.0075]
[1736827039364,3.15896,3165.6,3165.0,0.0075]
[1736827039564,0.03153325,3165.5,3165.0,0.0075]
[1736827041352,3.15878,3165.8,3165.2,0.0075]
[1736827042195,0.03153325,3165.7,3165.2,0.0075]
[1736827043563,0.63643066,3165.9,3165.4,0.0075]
[1736827043965,0.63643066,3165.9,3165.5,0.19350034]
[1736827044479,0.63643066,3165.9,3165.6,0.7594]
[1736827044667,0.63643066,3165.9,3165.6,0.95288629]
[1736827045594,0.03153325,3165.8,3165.6,0.20098629]
[1736827045787,3.19033325,3165.8,3165.6,0.20098629]
[1736827050493,3.67568964,3165.8,3165.6,0.20098629]
[1736827050694,3.19033325,3165.8,3165.6,0.20098629]
[1736827051913,3.15885,3165.7,3165.6,0.19348629]
[1736827052072,3.98955,3165.7,3164.9,0.8017]
[1736827052271,3.15932,3165.3,3165.0,0.0075]
[1736827052472,0.03153325,3165.2,3165.0,0.0075]
[1736827053900,3.19089325,3165.2,3164.5,0.8242]
[1736827054102,3.19089325,3165.2,3164.6,0.38242]
[1736827054706,3.19089325,3165.2,3164.8,0.0075]
[1736827055083,3.19089325,3165.2,3165.0,0.0075]
[1736827055499,3.19089325,3165.2,3165.1,0.18715294]
[1736827056479,3.15936,3165.2,3165.1,0.18715294]
[1736827056675,3.15936,3165.2,3164.8,0.0075]
[1736827056875,3.15936,3165.2,3164.7,0.8017]
[1736827057228,3.15936,3165.2,3164.9,0.18718105]
[1736827057392,0.03153325,3165.1,3164.8,0.1946951]
[1736827057591,0.03153325,3165.1,3165.0,0.18716699]
[1736827057894,0.03153325,3165.1,3164.9,0.18718105]
[1736827058115,3.15936,3165.2,3165.0,0.18716699]
[1736827058311,3.15936,3165.2,3164.8,0.0075]
[1736827058504,3.15936,3165.2,3165.1,0.18716751]
[1736827058891,3.15936,3165.2,3164.8,0.0075]
[1736827059093,3.15936,3165.2,3164.9,0.18719561]
[1736827059716,0.03153325,3165.1,3164.9,0.18719561]
[1736827060916,3.15955,3165.0,3164.9,0.18719561]
[1736827061114,3.47865832,3165.0,3164.7,0.8017]
[1736827061319,0.03153325,3164.9,3164.7,0.8017]
[1736827062179,0.03153325,3164.9,3164.8,0.18720967]
[1736827062580,0.03153325,3164.9,3164.6,0.0075]
[1736827062793,0.03153325,3164.9,3164.8,0.18720967]
[1736827063019,0.03153325,3164.9,3164.7,0.18722373]
[1736827063220,0.03153325,3164.9,3164.8,0.18720967]
[1736827063519,0.03153325,3164.9,3164.6,0.0075]
[1736827063817,0.03153325,3164.9,3164.7,0.18752966]
[1736827068704,3.15955,3165.0,3164.7,0.18752966]
[1736827069105,0.03153325,3164.9,3164.7,0.18752966]
[1736827076217,3.15975,3164.8,3164.7,0.18752966]
[1736827076543,3.95515,3164.8,3164.2,0.8186]
[1736827076726,3.16015,3164.5,3164.2,0.8186]
[1736827076912,0.03153325,3164.4,3164.3,0.18792101]
[1736827079305,3.16039,3164.2,3163.9,0.8111]
[1736827079531,0.03153325,3164.1,3163.7,0.8111]
[1736827079710,0.03153325,3164.1,3163.8,0.19277316]
[1736827080222,3.16065,3163.9,3163.8,0.18527316]
[1736827080432,3.58794825,3163.9,3163.8,0.18527316]
[1736827080739,3.58794825,3163.9,3163.5,0.0075]
[1736827080942,3.19218325,3163.9,3163.6,0.18536679]
[1736827082746,0.03153325,3163.9,3163.7,0.0075]
[1736827083050,3.16049,3164.1,3163.8,0.99645321]
[1736827083721,0.03153325,3164.0,3163.8,0.99645321]
[1736827084649,0.03153325,3164.0,3163.8,0.18535321]
[1736827084950,0.03153325,3164.0,3163.5,0.8111]
[1736827084951,0.03153325,3164.0,3163.6,0.0075]
[1736827085255,0.03153325,3164.0,3163.8,0.0075]
[1736827087547,0.03153325,3164.0,3163.6,0.0075]
[1736827087751,0.797,3164.4,3163.8,0.0075]
[1736827087752,3.16028,3164.3,3163.8,0.0075]
[1736827088051,3.16028,3164.3,3163.9,0.18557934]
[1736827088452,3.16028,3164.3,3163.8,0.0075]
[1736827088748,3.19192325,3164.2,3163.9,0.18557934]
[1736827089044,3.16047,3164.1,3163.9,0.18557934]
[1736827089251,0.03153325,3164.0,3163.9,0.19307934]
[1736827089418,0.03153325,3164.0,3163.9,0.0075]
[1736827090150,0.797,3163.9,3163.5,0.8111]
[1736827090362,0.797,3163.9,3163.6,0.18562154]
[1736827090363,0.03153325,3163.8,3163.6,0.18562154]
[1736827090512,0.797,3163.7,3163.1,0.005]
[1736827090718,0.03153325,3163.6,3163.2,0.18576515]
[1736827090919,0.39894233,3163.5,3163.1,0.005]
[1736827091244,0.03153325,3163.4,3163.1,0.005]
[1736827091617,3.16125,3163.3,3163.1,0.005]
[1736827091913,0.03153325,3163.2,3163.1,0.005]
[1736827093455,3.16125,3163.3,3163.1,0.005]
[1736827094851,0.03153325,3163.2,3163.1,0.005]
[1736827095558,3.16125,3163.3,3163.1,0.005]
[1736827096355,0.03153325,3163.2,3163.1,0.005]
[1736827097354,3.16125,3163.3,3163.1,0.005]
[1736827097999,0.03153325,3163.2,3163.1,0.005]
[1736827098159,3.16125,3163.3,3163.1,0.005]
[1736827098742,0.03153325,3163.2,3163.1,0.005]
[1736827099349,3.16125,3163.3,3163.1,0.005]
[1736827100228,0.797,3163.7,3163.1,0.005]
[1736827100451,3.16065,3163.9,3163.3,0.0075]
[1736827101657,3.16045,3164.1,3163.3,0.03911082]
[1736827101866,3.16045,3164.1,3163.4,0.7902]
[1736827102168,3.16045,3164.1,3163.4,0.97685429]
[1736827102169,0.03153325,3164.0,3163.4,0.97685429]
[1736827103155,3.16069,3163.9,3163.4,0.97685429]
[1736827103359,0.03153325,3163.8,3163.4,0.97685429]
[1736827103672,3.16069,3163.9,3163.5,0.0075]
[1736827103966,3.16048,3164.1,3163.4,0.0075]
[1736827104172,3.16048,3164.1,3163.6,0.0075]
[1736827104369,3.16048,3164.1,3163.8,0.0075]
[1736827104855,3.16027,3164.3,3163.8,0.0075]
[1736827105026,3.16027,3164.3,3163.9,0.7902]
[1736827105226,3.16027,3164.3,3163.9,0.97640538]
[1736827105549,3.16006,3164.5,3164.0,0.0075]
[1736827105957,3.15988,3164.7,3164.2,0.0075]
[1736827106168,0.64840589,3164.8,3164.4,0.0075]
[1736827106541,0.03153325,3164.8,3164.6,0.0075]
[1736827106867,0.03153325,3164.8,3164.7,0.18604923]
[1736827107372,0.03153325,3164.8,3164.4,0.0075]
[1736827107574,0.03153325,3164.8,3164.6,0.0075]
[1736827107876,0.03153325,3164.8,3164.7,0.1858891]
[1736827108230,0.03153325,3164.8,3164.4,0.0075]
[1736827108625,0.03153325,3164.8,3164.6,0.0075]
[1736827110041,3.15936,3165.2,3164.4,0.03910015]
[1736827110376,3.19101325,3165.1,3164.4,0.0225]
[1736827110527,3.19101325,3165.1,3164.5,0.18591722]
[1736827113175,3.15956,3165.0,3164.5,0.18591722]
[1736827117210,3.15965,3164.9,3164.5,0.18591722]
[1736827119114,0.62665796,3165.2,3164.5,0.18591722]
[1736827119115,0.03153325,3164.8,3164.5,0.18591722]
[1736827119268,3.15994,3164.7,3164.5,0.18591722]
[1736827119468,3.15994,3164.7,3164.3,0.7902]
[1736827119680,3.15994,3164.7,3164.6,0.19250789]
[1736827119880,3.15994,3164.7,3164.6,0.0075]
[1736827120532,3.15994,3164.7,3164.6,0.19250789]
[1736827120712,3.15994,3164.7,3164.6,0.0075]
[1736827121171,3.15994,3164.7,3164.6,0.19250789]
[1736827125596,3.475934,3164.7,3164.6,0.19250789]
[1736827125774,3.15994,3164.7,3164.6,0.19250789]
[1736827136336,3.15994,3164.7,3164.6,0.0075]
[1736827137639,3.15997,3164.6,3164.3,0.7902]
[1736827137779,0.03153325,3164.5,3164.4,0.1847231]
[1736827137985,0.03153325,3164.5,3164.4,0.1922231]
[1736827141632,0.789,3165.1,3164.5,0.0075]
[1736827141933,3.15943,3165.2,3164.7,0.8238]
[1736827142233,0.03153325,3165.1,3164.9,0.0075]
[1736827143507,0.03153325,3165.1,3164.8,0.0075]
[1736827143912,0.03153325,3165.1,3165.0,0.0075]
[1736827144108,3.19098325,3165.1,3165.0,0.0075]
[1736827144330,3.19098325,3165.1,3165.0,0.19224063]
[1736827144632,4.35345691,3165.1,3165.0,0.18474063]
[1736827144794,4.35345691,3165.1,3164.0,3.0]
[1736827145000,3.15996,3164.6,3164.1,1.00097798]
[1736827145223,0.03153325,3164.5,3164.1,1.00097798]
[1736827145631,3.15996,3164.6,3164.2,0.0075]
[1736827145801,3.15996,3164.6,3164.4,0.0075]
[1736827146019,3.15996,3164.6,3164.5,0.18462174]
[1736827147095,3.7842756,3164.8,3164.5,0.18462174]
[1736827148250,3.15987,3164.7,3164.5,0.18462174]
[1736827148460,3.19140325,3164.7,3164.5,0.18462174]
[1736827149208,3.15987,3164.7,3164.5,0.18462174]
[1736827149403,1.16247366,3165.1,3164.5,0.18462174]
[1736827149704,3.15941,3165.2,3164.6,0.7859]
[1736827150156,3.15941,3165.2,3164.8,0.0075]
[1736827150506,3.15941,3165.2,3164.9,0.1848711]
[1736827150700,3.15941,3165.2,3165.0,0.0075]
[1736827151755,3.78524834,3165.4,3164.7,0.0075]
[1736827151957,0.62606834,3165.4,3165.1,0.7784]
[1736827152452,3.78525834,3165.4,3165.2,0.18458884]
[1736827152608,3.78525834,3165.4,3165.1,0.7784]
[1736827152810,3.78525834,3165.4,3165.2,0.18458884]
[1736827153039,3.78525834,3165.4,3165.1,0.7784]
[1736827153242,3.78525834,3165.4,3165.2,0.18458884]
[1736827153564,3.78525834,3165.4,3165.1,0.7784]
[1736827153861,3.78525834,3165.4,3165.2,0.18458884]
[1736827154390,3.78525834,3165.4,3165.1,0.7784]
[1736827154537,3.78525834,3165.4,3165.2,0.18458884]
[1736827154737,3.78525834,3165.4,3165.1,0.7784]
[1736827154981,3.78525834,3165.4,3165.2,0.18458884]
[1736827155132,3.78525834,3165.4,3165.1,0.7784]
[1736827155340,3.78525834,3165.4,3165.2,0.18458884]
[1736827155569,3.78525834,3165.4,3165.1,0.7784]
[1736827155880,0.84073325,3165.3,3165.2,0.18458884]
[1736827156087,3.99998325,3165.3,3165.2,0.18458884]
[1736827156289,0.8092,3165.2,3164.3,3.0]
[1736827156491,3.1598,3164.8,3164.3,3.0]
[1736827156778,3.19139325,3164.7,3164.5,0.18451991]
[1736827157086,3.15968,3164.9,3164.5,0.18451991]
[1736827157652,0.03153325,3164.8,3164.5,0.18451991]
[1736827157980,3.15975,3164.8,3164.5,0.18451991]
[1736827159841,3.15975,3164.8,3164.3,0.0075]
[1736827160060,3.15975,3164.8,3164.5,0.0075]
[1736827160264,3.15958,3165.0,3164.7,0.0075]
[1736827160595,3.2994,3165.2,3164.8,0.8053]
[1736827160762,3.2994,3165.2,3164.8,0.9901124]
[1736827160961,3.94194307,3165.2,3164.8,0.9901124]
[1736827161164,3.19100325,3165.1,3164.8,0.1848124]
[1736827161347,3.19100325,3165.1,3164.5,0.8128]
[1736827161547,3.19100325,3165.1,3164.6,0.18484052]
[1736827161772,3.19100325,3165.1,3164.7,0.0075]
[1736827161954,3.19100325,3165.1,3164.8,0.1848124]
[1736827162157,3.19100325,3165.1,3164.6,0.0075]
[1736827162363,0.03153325,3165.1,3164.7,0.18469549]
[1736827162558,3.15959,3165.0,3164.8,0.0075]
[1736827162880,0.03153325,3164.9,3164.8,0.0075]
[1736827163867,0.03153325,3164.9,3164.6,0.0075]
[1736827164391,0.03153325,3164.9,3164.8,0.0075]
[1736827164564,4.00043325,3164.9,3164.3,0.8053]
[1736827164886,0.8092,3164.9,3164.5,0.0075]
[1736827165087,3.19128325,3164.8,3164.5,0.0075]
[1736827165287,3.19128325,3164.8,3164.6,0.18470955]
[1736827165618,3.19128325,3164.8,3164.4,0.0075]
[1736827165790,3.19128325,3164.8,3164.5,0.18472361]
[1736827166089,3.15989,3164.7,3164.5,0.18472361]
[1736827166284,0.03153325,3164.6,3164.5,0.19222361]
[1736827166490,0.03153325,3164.6,3164.5,0.18472361]
[1736827166676,3.19148325,3164.6,3164.5,0.18472361]
[1736827166879,3.19148325,3164.6,3164.4,0.0075]
[1736827167073,3.19148325,3164.6,3164.5,0.18472361]
[1736827168388,3.19148325,3164.6,3163.9,3.0]
[1736827168389,3.16036,3164.2,3163.7,0.7704]
[1736827168589,4.30489833,3164.6,3163.2,0.7704]
[1736827168590,3.98639,3164.0,3163.2,0.7704]
[1736827168792,3.19218325,3163.9,3163.8,0.18482204]
[1736827168994,3.19218325,3163.9,3163.3,0.0075]
[1736827169190,3.8112399,3163.9,3163.3,0.0075]
[1736827169399,3.8112399,3163.9,3163.5,0.0075]